bitfinex/quotes_ETHUSD_20241129
["timestamp","ask_amount","ask_price","bid_price","bid_amount"]
[1732913572156,2.77779,3600.0,3599.4,2.77824]
[1732913572157,2.77785,3599.9,3599.7,0.08684808]
[1732913572356,2.77785,3599.9,3599.4,2.77824]
[1732913572582,2.77785,3599.9,3599.5,0.08684914]
[1732913572794,2.77785,3599.9,3599.6,0.08684914]
[1732913573097,2.77785,3599.9,3599.7,0.08684914]
[1732913573387,2.77785,3599.9,3599.8,0.08684698]
[1732913573981,2.77785,3599.9,3599.4,2.77824]
[1732913574189,2.77785,3599.9,3599.5,0.08684932]
[1732913574363,2.77785,3599.9,3599.6,0.08684932]
[1732913574564,2.77785,3599.9,3599.7,0.08684932]
[1732913574766,2.77785,3599.9,3599.4,2.77824]
[1732913575093,2.77785,3599.9,3599.5,0.08684729]
[1732913575300,2.77785,3599.9,3599.6,0.08684729]
[1732913575590,2.77785,3599.9,3599.7,0.08684729]
[1732913575790,2.77785,3599.9,3599.4,2.77824]
[1732913575956,2.77785,3599.9,3599.5,0.08684735]
[1732913576154,2.77785,3599.9,3599.6,0.08684735]
[1732913576397,2.77785,3599.9,3599.7,0.08684735]
[1732913576558,2.77785,3599.9,3599.4,2.77824]
[1732913576759,1.22189581,3600.1,3599.4,2.77824]
[1732913576959,1.22189581,3600.1,3599.5,0.0868473]
[1732913577270,1.22189581,3600.1,3599.4,2.77824]
[1732913577271,2.7778,3600.0,3599.6,0.0868473]
[1732913577471,2.7778,3600.0,3599.4,2.77824]
[1732913577675,2.7778,3600.0,3599.5,0.08685044]
[1732913577892,2.7778,3600.0,3599.6,0.08685044]
[1732913578073,2.7778,3600.0,3599.4,2.77824]
[1732913578253,2.7778,3600.0,3599.5,0.08684738]
[1732913578458,2.7778,3600.0,3599.6,0.08684738]
[1732913578699,2.7778,3600.0,3599.7,0.08684738]
[1732913579061,2.7778,3600.0,3599.4,2.77824]
[1732913579261,2.7778,3600.0,3599.5,0.0868473]
[1732913579483,2.7778,3600.0,3599.6,0.0868473]
[1732913579796,2.7778,3600.0,3599.7,0.0868473]
[1732913579996,2.7778,3600.0,3599.5,2.77813]
[1732913580199,2.7778,3600.0,3599.6,0.0868469]
[1732913580359,2.7778,3600.0,3599.5,2.77813]
[1732913580360,2.7778,3600.0,3599.7,0.0868469]
[1732913580696,2.77785,3599.9,3599.3,3.32826]
[1732913580870,2.77785,3599.9,3599.4,2.86506718]
[1732913581078,2.77785,3599.9,3599.5,0.08684718]
[1732913581323,2.77785,3599.9,3599.6,0.08684718]
[1732913581522,2.77785,3599.9,3599.7,0.08684718]
[1732913581826,2.77785,3599.9,3599.4,2.77822]
[1732913582027,2.77785,3599.9,3599.5,0.08684725]
[1732913582196,2.77785,3599.9,3599.6,0.08684725]
[1732913582404,2.77785,3599.9,3599.7,0.08684725]
[1732913582613,2.77785,3599.9,3599.4,2.77822]
[1732913582823,2.77785,3599.9,3599.5,0.08684727]
[1732913583131,2.77785,3599.9,3599.6,0.08684727]
[1732913583333,2.77785,3599.9,3599.7,0.08684727]
[1732913583539,2.77785,3599.9,3599.4,2.77822]
[1732913583696,3.99965581,3600.1,3599.5,0.08684717]
[1732913584026,2.7778,3600.0,3599.6,0.08684717]
[1732913584232,2.7778,3600.0,3599.8,0.4298973]
[1732913585688,2.77785,3599.9,3599.8,0.4298973]
[1732913585894,2.77793,3599.8,3599.3,3.32831]
[1732913586197,2.778,3599.7,3599.6,0.42988767]
[1732913586391,4.75409581,3599.7,3599.6,0.51673493]
[1732913586616,2.77818,3599.5,3599.3,0.42988767]
[1732913587317,2.77818,3599.5,3599.0,3.53654]
[1732913587656,4.75409581,3599.7,3599.0,3.53654]
[1732913587657,3.5322,3599.7,3599.3,0.42994234]
[1732913587934,2.77809,3599.6,3599.4,0.42994234]
[1732913588289,2.77809,3599.6,3599.1,2.77841]
[1732913588515,2.77809,3599.6,3599.2,0.08685597]
[1732913588727,2.77809,3599.6,3599.3,0.08685597]
[1732913588929,2.77809,3599.6,3599.4,0.08685597]
[1732913589129,2.77809,3599.6,3599.1,2.77841]
[1732913589339,2.77809,3599.6,3599.2,0.08685424]
[1732913589529,2.77809,3599.6,3599.3,0.08685424]
[1732913589733,2.77809,3599.6,3599.4,0.08685424]
[1732913589941,2.77809,3599.6,3599.1,2.77841]
[1732913590109,2.77809,3599.6,3599.2,0.0868543]
[1732913590313,2.77809,3599.6,3599.3,0.0868543]
[1732913590548,2.77809,3599.6,3599.4,0.0868543]
[1732913590858,2.77809,3599.6,3599.0,3.53651]
[1732913591000,2.77809,3599.6,3599.1,0.08685432]
[1732913591201,2.77809,3599.6,3599.2,0.08685432]
[1732913591417,2.77809,3599.6,3599.3,0.08685432]
[1732913591648,2.77809,3599.6,3599.4,0.08685432]
[1732913591846,2.77809,3599.6,3599.0,3.53651]
[1732913592017,2.77809,3599.6,3599.1,0.08685435]
[1732913592343,2.77809,3599.6,3599.2,0.08685435]
[1732913592580,3.5322,3599.7,3599.3,0.08685435]
[1732913592717,3.5322,3599.7,3599.4,0.08685435]
[1732913592914,3.5322,3599.7,3599.2,2.77837]
[1732913593139,6.31027,3599.7,3599.3,0.08685411]
[1732913593441,2.77809,3599.6,3599.4,0.08685411]
[1732913593649,2.77809,3599.6,3599.1,2.77845]
[1732913593845,2.77809,3599.6,3599.2,0.08685421]
[1732913594051,2.77809,3599.6,3599.3,0.08685421]
[1732913594211,2.77809,3599.6,3599.4,0.08685421]
[1732913594411,0.7542,3599.7,3599.5,0.08685421]
[1732913594612,3.53223,3599.7,3599.1,2.77845]
[1732913594810,3.53223,3599.7,3599.2,0.08685412]
[1732913595036,3.53223,3599.7,3599.2,2.77835]
[1732913595237,0.7542,3599.7,3599.2,2.77835]
[1732913595408,3.53221,3600.1,3599.2,0.63148]
[1732913595627,3.53221,3600.1,3599.3,0.8053]
[1732913595934,2.77771,3600.1,3599.6,0.7885]
[1732913596111,2.77771,3600.1,3599.7,1.18644876]
[1732913596309,2.77771,3600.1,3599.8,0.51584729]
[1732913596515,2.77778,3600.0,3599.8,0.51584729]
[1732913596757,2.77778,3600.0,3599.6,0.7885]
[1732913596917,2.77778,3600.0,3599.7,0.08684682]
[1732913597117,2.77778,3600.0,3599.6,0.7885]
[1732913597336,2.77778,3600.0,3599.7,0.08684698]
[1732913597531,2.77778,3600.0,3599.6,0.7885]
[1732913597719,2.77778,3600.0,3599.7,0.08684699]
[1732913597922,2.77778,3600.0,3599.6,0.7885]
[1732913598146,2.77778,3600.0,3599.7,0.08684679]
[1732913598454,2.77778,3600.0,3599.6,0.7885]
[1732913598747,2.77763,3600.2,3599.7,0.08684691]
[1732913598951,2.77771,3600.1,3599.8,0.08684691]
[1732913599140,2.77771,3600.1,3599.6,0.7885]
[1732913599316,2.77771,3600.1,3599.7,0.0868468]
[1732913599510,2.77771,3600.1,3599.6,0.7885]
[1732913599511,2.77772,3600.1,3599.8,0.0868468]
[1732913599723,2.77772,3600.1,3599.6,0.7885]
[1732913599928,1.22189581,3599.9,3599.7,0.08684676]
[1732913600129,0.7848,3600.3,3598.4,0.56337088]
[1732913600130,2.77824,3599.4,3599.0,0.758]
[1732913600344,2.77834,3599.3,3599.1,0.08684864]
[1732913600655,2.77834,3599.3,3599.2,0.08684864]
[1732913600854,4.00010581,3599.5,3599.2,0.08684864]
[1732913601057,4.00010581,3599.5,3598.9,2.77862]
[1732913601058,2.77821,3599.5,3598.9,2.77862]
[1732913601356,2.77812,3599.6,3598.7,0.758]
[1732913601357,2.77847,3599.1,3599.0,0.08686081]
[1732913601554,2.77847,3599.1,3598.4,3.60525]
[1732913601759,2.77847,3599.1,3598.5,0.08687101]
[1732913601928,2.77847,3599.1,3598.6,0.08687101]
[1732913602116,2.77847,3599.1,3598.7,0.08687101]
[1732913602458,2.77847,3599.1,3598.8,0.08687101]
[1732913602618,2.77847,3599.1,3598.5,2.77893]
[1732913602950,2.77854,3599.0,3598.6,0.08686896]
[1732913603129,2.77854,3599.0,3598.7,0.08686896]
[1732913603326,2.77862,3598.9,3598.8,0.08686896]
[1732913603527,2.77873,3598.8,3598.3,2.77902]
[1732913603853,2.77873,3598.8,3598.4,0.08687131]
[1732913604052,0.8265,3598.9,3598.5,0.08687131]
[1732913604267,0.8265,3599.1,3598.6,0.08687131]
[1732913604614,0.8265,3599.1,3598.6,2.86571131]
[1732913604615,3.60497,3599.1,3598.6,2.86571131]
[1732913604920,3.60497,3599.1,3598.7,0.08687137]
[1732913605120,0.8265,3599.1,3598.6,2.77884]
[1732913605352,3.60497,3599.1,3598.7,0.08686998]
[1732913605554,3.60497,3599.1,3598.6,2.77884]
[1732913605725,3.60497,3599.1,3598.7,0.0868676]
[1732913605924,3.60497,3599.1,3598.4,2.77896]
[1732913606123,3.60497,3599.1,3598.5,0.08686779]
[1732913606363,3.60497,3599.1,3598.4,2.77896]
[1732913606364,2.77855,3599.0,3598.6,0.08686779]
[1732913606537,2.77855,3599.0,3598.4,2.77896]
[1732913606538,2.77855,3599.0,3598.7,0.08686779]
[1732913606741,2.77855,3599.0,3598.4,2.77896]
[1732913606961,2.77855,3599.0,3598.5,2.86577767]
[1732913607132,0.8265,3599.1,3598.6,2.86571767]
[1732913607333,0.8265,3599.1,3598.6,2.77885]
[1732913607528,3.60503,3599.1,3598.7,0.08687011]
[1732913607855,3.60503,3599.1,3598.5,2.77889]
[1732913608065,3.60503,3599.1,3598.6,0.08686777]
[1732913608244,3.60503,3599.1,3598.7,0.08686777]
[1732913608560,3.60503,3599.1,3598.4,2.779]
[1732913608723,0.8265,3599.1,3598.7,2.77877]
[1732913610266,0.8265,3599.1,3598.6,0.7678]
[1732913610640,0.8265,3599.1,3598.7,2.77877]
[1732913610834,0.8265,3599.1,3598.7,2.86563879]
[1732913611049,0.8265,3599.1,3598.7,2.77877]
[1732913611253,0.8265,3599.1,3598.6,0.7678]
[1732913611454,0.8265,3599.1,3598.7,0.08686811]
[1732913611658,0.8265,3599.1,3598.6,3.54663]
[1732913611834,2.77841,3599.2,3598.7,0.08686816]
[1732913612179,2.77857,3599.0,3598.6,0.7678]
[1732913612382,2.77857,3599.0,3598.7,0.08686802]
[1732913612535,2.77857,3599.0,3598.6,0.7678]
[1732913612868,2.77857,3599.0,3598.7,0.08686801]
[1732913613079,2.77857,3599.0,3598.6,0.7678]
[1732913613307,2.77857,3599.0,3598.7,0.08686785]
[1732913613569,2.77857,3599.0,3598.6,0.7678]
[1732913613769,2.77857,3599.0,3598.7,0.08686796]
[1732913614087,2.77857,3599.0,3598.5,2.77893]
[1732913614372,0.759,3598.9,3598.6,0.08686803]
[1732913614560,2.77871,3598.8,3598.6,0.08686803]
[1732913614749,3.53762,3598.9,3598.4,0.55]
[1732913615097,3.53762,3598.9,3598.5,0.08687462]
[1732913615267,3.53767,3598.9,3598.4,0.55]
[1732913615567,3.53767,3598.9,3598.5,0.08687324]
[1732913615769,3.53767,3598.9,3598.4,0.55]
[1732913616481,3.53767,3598.9,3598.5,0.08687298]
[1732913616678,3.53767,3598.9,3598.4,0.55]
[1732913616972,3.53767,3598.9,3598.5,0.08687337]
[1732913617184,3.53767,3598.9,3598.4,0.55]
[1732913617668,3.53767,3598.9,3598.5,0.08687409]
[1732913617847,3.53767,3598.9,3598.4,0.55]
[1732913618049,3.53767,3598.9,3598.5,0.08687398]
[1732913618235,3.53767,3598.9,3598.4,0.55]
[1732913618437,3.53767,3598.9,3598.5,0.08687373]
[1732913618739,3.53767,3598.9,3598.4,0.55]
[1732913618953,3.53767,3598.9,3598.5,0.08687507]
[1732913619173,0.759,3598.9,3598.3,0.7828]
[1732913619358,2.77883,3598.7,3598.4,0.08687407]
[1732913619571,2.77883,3598.7,3598.5,0.08687407]
[1732913619797,2.77883,3598.7,3598.3,0.7828]
[1732913619998,2.77883,3598.7,3598.4,0.08687457]
[1732913620159,2.77883,3598.7,3598.5,0.08687457]
[1732913620495,2.77883,3598.7,3598.3,0.7828]
[1732913620994,2.77883,3598.7,3598.4,0.0868749]
[1732913621190,2.77883,3598.7,3598.5,0.0868749]
[1732913621369,2.77883,3598.7,3598.3,0.7828]
[1732913621572,2.77883,3598.7,3598.4,0.08687481]
[1732913621900,2.77883,3598.7,3598.5,0.08687481]
[1732913622115,2.77883,3598.7,3598.3,0.7828]
[1732913622398,2.77883,3598.7,3598.4,0.08687463]
[1732913622559,2.77883,3598.7,3598.3,0.7828]
[1732913622900,2.77883,3598.7,3598.4,0.08687585]
[1732913623197,2.77909,3598.3,3597.8,2.77947]
[1732913623495,2.77918,3598.2,3597.9,0.08687721]
[1732913623685,2.77918,3598.2,3598.0,0.08687721]
[1732913623883,0.7778,3598.4,3598.1,0.08687721]
[1732913623884,2.7791,3598.3,3598.1,0.08687721]
[1732913624189,0.7778,3598.1,3597.1,3.5594]
[1732913624355,3.55709,3598.1,3597.4,2.77973]
[1732913624558,2.77933,3598.0,3597.5,0.08688668]
[1732913624906,2.77933,3598.0,3597.6,0.08688668]
[1732913625059,2.77933,3598.0,3597.7,0.08688668]
[1732913625259,2.77933,3598.0,3597.4,2.77973]
[1732913625596,2.77933,3598.0,3597.5,0.08689183]
[1732913625899,2.77933,3598.0,3597.6,0.08689183]
[1732913626123,2.77933,3598.0,3597.5,0.55]
[1732913626259,2.77933,3598.0,3597.6,0.08689425]
[1732913626460,2.77933,3598.0,3597.5,0.55]
[1732913626667,2.77933,3598.0,3597.6,0.08689346]
[1732913626891,2.77933,3598.0,3597.5,0.55]
[1732913627069,2.77933,3598.0,3597.6,0.08689316]
[1732913627460,2.77933,3598.0,3597.5,0.55]
[1732913627669,2.7794,3597.9,3597.6,0.08689324]
[1732913627886,2.7794,3597.9,3597.5,0.55]
[1732913628068,2.7794,3597.9,3597.6,0.0868935]
[1732913628286,2.7794,3597.9,3597.3,0.55]
[1732913628488,2.77945,3597.9,3597.4,0.08689359]
[1732913628804,2.77945,3597.9,3597.5,0.08689359]
[1732913629097,2.77945,3597.9,3597.6,0.08689359]
[1732913629275,2.77945,3597.9,3597.4,2.77978]
[1732913629276,2.77945,3597.9,3597.4,0.55]
[1732913629474,2.77945,3597.9,3597.5,0.08689348]
[1732913629805,2.77945,3597.9,3597.6,0.08689348]
[1732913630135,2.77945,3597.9,3597.4,0.55]
[1732913630260,2.77945,3597.9,3597.3,2.77985]
[1732913630462,2.77949,3597.8,3597.4,0.08689454]
[1732913630779,2.7796,3597.7,3597.5,0.08689454]
[1732913631099,2.7796,3597.7,3597.2,0.55]
[1732913631297,2.7796,3597.7,3597.3,0.08689681]
[1732913631509,3.59377,3597.6,3597.4,0.08689681]
[1732913631712,3.59377,3597.6,3597.2,0.55]
[1732913631878,2.7797,3597.5,3597.3,0.08689883]
[1732913632079,2.7797,3597.5,3597.1,0.7794]
[1732913632290,2.7797,3597.5,3597.2,0.08690409]
[1732913632575,3.59377,3597.6,3597.1,0.7794]
[1732913632784,3.59377,3597.6,3597.2,0.08690344]
[1732913633072,3.59377,3597.6,3597.1,0.7794]
[1732913633277,3.59377,3597.6,3597.2,0.08690267]
[1732913633480,3.59377,3597.6,3597.1,0.7794]
[1732913633791,3.59377,3597.6,3597.2,0.08690387]
[1732913633995,3.59377,3597.6,3597.1,0.7794]
[1732913634403,0.8141,3597.6,3597.2,0.08690079]
[1732913634716,0.8141,3597.6,3597.1,0.7794]
[1732913634903,0.8141,3597.6,3597.2,0.08690016]
[1732913635085,0.8141,3597.6,3597.1,3.55937]
[1732913635285,0.8141,3597.6,3597.2,0.08690079]
[1732913635594,0.8141,3597.6,3597.1,3.55937]
[1732913635793,5.77944,3597.9,3597.3,2.77983]
[1732913636095,2.77895,3598.5,3597.5,2.02619581]
[1732913636282,3.61033,3598.7,3598.0,2.77924]
[1732913636480,2.77885,3598.6,3598.0,2.77924]
[1732913637671,2.77894,3598.5,3598.0,2.77924]
[1732913638180,3.57172,3598.4,3597.8,2.77947]
[1732913638413,3.57172,3598.4,3597.9,0.08688552]
[1732913638414,2.7791,3598.3,3597.9,0.08688552]
[1732913638623,2.7791,3598.3,3597.7,2.77954]
[1732913638919,2.7791,3598.3,3597.5,2.77965]
[1732913638920,2.77918,3598.2,3597.5,2.77965]
[1732913639104,2.7791,3598.3,3597.6,2.86646107]
[1732913639294,2.7791,3598.3,3597.7,0.08689107]
[1732913639484,2.7791,3598.3,3597.6,2.77957]
[1732913639684,2.7791,3598.3,3597.7,2.86642049]
[1732913639886,0.7927,3598.4,3597.8,2.77942]
[1732913640086,3.57171,3598.4,3597.9,2.77936]
[1732913640512,3.57171,3598.4,3597.6,2.77959]
[1732913640513,2.77909,3598.3,3597.7,2.7795]
[1732913640721,3.57172,3598.4,3597.8,2.86632457]
[1732913641016,3.57172,3598.4,3597.9,0.08688457]
[1732913641225,3.57172,3598.4,3597.8,2.77944]
[1732913641432,3.57172,3598.4,3597.9,0.08688386]
[1732913641605,0.7927,3598.4,3597.8,2.77942]
[1732913641928,0.7927,3598.4,3598.0,2.77931]
[1732913642141,0.7927,3598.4,3597.8,3.59102]
[1732913642310,2.7791,3598.3,3597.9,0.08688369]
[1732913642497,2.7791,3598.3,3597.6,5.55916]
[1732913642843,2.7791,3598.3,3597.7,2.866404]
[1732913643132,2.77922,3598.2,3597.8,0.086884]
[1732913643293,2.77922,3598.2,3597.6,2.77956]
[1732913643634,2.77922,3598.2,3597.7,0.08688919]
[1732913643833,2.77929,3598.1,3597.6,0.55]
[1732913644040,2.77929,3598.1,3597.7,0.08688914]
[1732913644329,2.77945,3597.9,3597.5,0.8116]
[1732913644506,3.59198,3597.8,3597.3,2.77986]
[1732913644705,3.59198,3597.8,3597.4,0.08689545]
[1732913645030,3.59198,3597.8,3597.3,2.77986]
[1732913645194,3.59198,3597.8,3597.4,0.0868991]
[1732913645396,3.59198,3597.8,3597.2,0.55]
[1732913645598,3.59198,3597.8,3597.3,2.86674772]
[1732913645940,3.59198,3597.8,3597.4,0.08689772]
[1732913646227,3.59198,3597.8,3597.2,0.55]
[1732913646407,3.59198,3597.8,3597.3,0.08689845]
[1732913646607,3.592,3597.8,3597.4,0.08689845]
[1732913646798,0.8125,3597.8,3597.1,0.8068]
[1732913646995,0.8125,3597.8,3597.2,0.08689681]
[1732913647196,0.8125,3597.8,3597.3,0.08689681]
[1732913647197,2.77968,3597.6,3597.3,0.08689681]
[1732913647426,2.77968,3597.6,3597.0,2.78008]
[1732913647733,2.77968,3597.6,3597.1,0.08690154]
[1732913647928,2.77968,3597.6,3597.2,0.08690154]
[1732913648129,2.77968,3597.6,3597.3,0.08690154]
[1732913648302,2.77978,3597.4,3597.1,0.43007147]
[1732913648503,2.77978,3597.4,3597.2,0.08690204]
[1732913648807,2.77978,3597.4,3597.1,0.43007944]
[1732913649018,2.77993,3597.2,3596.9,0.43007944]
[1732913649214,2.77993,3597.2,3596.4,0.7747]
[1732913649215,2.78006,3597.1,3596.4,3.55525]
[1732913649521,2.7798,3597.4,3596.8,2.78021]
[1732913649726,2.7798,3597.4,3596.9,0.86161908]
[1732913649941,2.7798,3597.4,3597.0,0.08691908]
[1732913650115,2.77949,3597.8,3597.1,2.78]
[1732913650449,3.0,3597.6,3597.1,2.77994]
[1732913650606,3.0,3597.6,3597.2,0.08690391]
[1732913650944,2.7797,3597.5,3597.0,0.55]
[1732913651240,2.7797,3597.5,3597.1,0.08690354]
[1732913651538,2.7797,3597.5,3597.2,0.08690354]
[1732913651846,2.7797,3597.5,3597.0,0.55]
[1732913652047,2.7797,3597.5,3597.1,0.08690375]
[1732913652223,2.7797,3597.5,3597.2,0.08690375]
[1732913652410,2.7797,3597.5,3597.0,0.55]
[1732913652606,2.7797,3597.5,3597.1,0.08690393]
[1732913652951,0.806,3597.3,3596.8,0.55]
[1732913653246,0.806,3597.3,3597.0,0.55]
[1732913653421,0.806,3597.3,3597.1,0.08690821]
[1732913653618,0.806,3597.3,3596.6,0.8313]
[1732913653820,2.78014,3597.0,3596.7,0.0869111]
[1732913654132,2.78014,3597.0,3596.8,0.0869111]
[1732913654332,2.78014,3597.0,3596.4,3.54303]
[1732913654545,2.78014,3597.0,3596.5,0.08691646]
[1732913654839,2.78014,3597.0,3596.6,0.08691646]
[1732913655043,2.78014,3597.0,3596.7,0.08691646]
[1732913655344,2.78014,3597.0,3596.6,0.55]
[1732913655652,2.78014,3597.0,3596.5,0.55]
[1732913655804,2.78014,3597.0,3596.6,0.08691904]
[1732913656011,2.78014,3597.0,3596.7,0.08691859]
[1732913656352,2.78014,3597.0,3596.5,0.55]
[1732913657338,2.78019,3596.9,3596.6,0.08691887]
[1732913658043,2.78019,3596.9,3596.5,0.55]
[1732913658225,2.78019,3596.9,3596.2,3.55855]
[1732913658434,2.78019,3596.9,3596.3,0.55]
[1732913658643,0.764,3596.7,3596.6,1.18700198]
[1732913658814,0.764,3596.7,3596.4,1.27392175]
[1732913659164,2.7804,3596.6,3596.2,0.55]
[1732913659446,0.764,3596.7,3596.3,0.0869228]
[1732913659655,0.764,3596.7,3596.2,0.55]
[1732913659813,0.764,3596.7,3596.3,0.08692285]
[1732913660015,0.764,3596.7,3596.3,2.78057]
[1732913660313,2.78032,3596.8,3596.2,0.55]
[1732913660512,2.78024,3596.9,3596.3,0.08692255]
[1732913660845,2.78032,3596.7,3596.2,0.55]
[1732913661049,2.78032,3596.7,3596.3,0.08692336]
[1732913661229,2.78032,3596.7,3596.2,0.55]
[1732913661435,2.78032,3596.7,3596.3,0.08692348]
[1732913661614,2.78032,3596.7,3596.2,0.55]
[1732913661821,2.78032,3596.7,3596.3,0.08692368]
[1732913662120,2.78032,3596.7,3596.2,0.55]
[1732913662525,2.78032,3596.7,3596.3,0.08692196]
[1732913662720,2.78032,3596.7,3596.2,3.33071]
[1732913662921,2.78032,3596.7,3596.3,0.08692177]
[1732913663149,2.78032,3596.7,3596.2,3.33071]
[1732913663355,2.78024,3596.9,3596.3,0.0869219]
[1732913663566,2.78029,3596.8,3596.2,3.33071]
[1732913663846,2.7804,3596.6,3596.1,0.55]
[1732913664246,2.78056,3596.4,3596.2,0.08692362]
[1732913664527,2.78056,3596.4,3595.8,2.78102]
[1732913664528,2.78068,3596.3,3595.8,0.55]
[1732913664845,2.78068,3596.3,3596.0,0.55]
[1732913665028,2.78068,3596.3,3595.8,0.55]
[1732913665227,2.78068,3596.3,3596.0,0.55]
[1732913665756,2.78068,3596.3,3595.7,3.57129]
[1732913665757,2.78068,3596.3,3595.8,0.55]
[1732913666070,2.78068,3596.3,3595.9,0.08692891]
[1732913666266,2.78068,3596.3,3595.8,0.55]
[1732913666469,2.78068,3596.3,3595.9,0.08693019]
[1732913666771,2.78068,3596.3,3595.8,0.55]
[1732913666968,1.22189581,3596.4,3595.3,0.7628]
[1732913667170,2.78076,3596.2,3595.5,2.78118]
[1732913667464,2.78057,3596.4,3595.7,2.78105]
[1732913667625,2.78066,3596.3,3595.9,0.2776]
[1732913667832,2.78066,3596.3,3595.8,0.7628]
[1732913668271,0.7917,3597.4,3596.4,0.7628]
[1732913668479,2.78025,3596.8,3596.4,0.7628]
[1732913670856,2.78025,3596.8,3596.3,0.55]
[1732913674084,3.76,3596.9,3596.3,3.33062]
[1732913674281,2.7801,3597.0,3596.4,2.86740251]
[1732913674457,2.7801,3597.0,3596.4,2.78048]
[1732913674785,2.78018,3596.9,3596.4,2.78048]
[1732913675230,2.78018,3596.9,3596.3,0.55]
[1732913675381,2.78018,3596.9,3596.4,0.08692201]
[1732913675679,2.78018,3596.9,3596.0,2.78085]
[1732913675680,0.7919,3596.6,3596.1,0.55]
[1732913675837,0.7919,3596.6,3596.2,0.08692385]
[1732913676038,0.7919,3596.6,3596.3,0.08692385]
[1732913676278,0.7919,3596.6,3596.4,0.08692385]
[1732913676439,2.78036,3596.7,3596.1,0.55]
[1732913676640,1.98269581,3596.8,3596.2,0.08692406]
[1732913676836,2.7805,3596.5,3596.3,0.08692406]
[1732913677045,2.7805,3596.5,3596.0,0.55]
[1732913677046,2.7805,3596.5,3596.0,3.33085]
[1732913677277,2.7805,3596.5,3596.2,0.55]
[1732913677458,2.7805,3596.5,3596.0,3.33085]
[1732913677662,2.7805,3596.5,3596.2,0.55]
[1732913677879,2.78036,3596.7,3596.1,2.78078]
[1732913678184,2.78041,3596.6,3596.2,0.63692914]
[1732913678479,2.78041,3596.6,3596.3,0.08692914]
[1732913678782,2.78019,3596.9,3596.4,0.08692914]
[1732913678953,2.78025,3596.8,3596.5,0.90332914]
[1732913679142,2.78032,3596.7,3596.2,4.13035]
[1732913679340,2.78032,3596.7,3596.3,0.08692076]
[1732913679555,2.78032,3596.7,3596.4,0.08692076]
[1732913679781,2.78032,3596.7,3596.5,0.08692076]
[1732913679978,2.78032,3596.7,3596.2,4.13035]
[1732913680292,2.78032,3596.7,3596.3,0.08692236]
[1732913680452,2.78032,3596.7,3596.4,0.08692236]
[1732913680655,2.78042,3596.6,3596.5,0.08692236]
[1732913681356,5.56056,3596.8,3596.5,0.08692236]
[1732913681571,2.78033,3596.7,3596.2,1.3497]
[1732913681775,2.78033,3596.7,3596.3,0.08692272]
[1732913682081,2.78033,3596.7,3596.4,0.08692272]
[1732913682287,2.78033,3596.7,3596.5,0.08692272]
[1732913682586,2.78033,3596.7,3596.2,1.3497]
[1732913682897,2.7804,3596.6,3596.3,0.08692435]
[1732913683059,2.7804,3596.6,3596.4,0.08692435]
[1732913683259,2.7804,3596.6,3596.5,0.08692435]
[1732913683460,2.7804,3596.6,3596.5,0.08692448]
[1732913684999,3.61,3596.6,3596.5,0.08692448]
[1732913685702,2.78058,3596.4,3595.9,0.55]
[1732913685861,2.78058,3596.4,3596.1,0.55]
[1732913686064,2.78058,3596.4,3596.2,0.08692912]
[1732913686259,2.78058,3596.4,3596.3,0.08692912]
[1732913686805,2.78058,3596.4,3595.9,0.55]
[1732913686966,2.78058,3596.4,3596.0,0.08693035]
[1732913687165,2.78058,3596.4,3595.9,0.55]
[1732913687360,2.78058,3596.4,3596.0,0.08693186]
[1732913687729,2.78058,3596.4,3596.1,0.08693186]
[1732913687994,2.78058,3596.4,3596.2,0.08693186]
[1732913688195,2.78058,3596.4,3596.3,0.08693186]
[1732913689565,2.78058,3596.4,3596.3,0.08693186]
[1732913696615,2.78028,3596.8,3596.3,0.08693186]
[1732913696936,2.78028,3596.8,3596.4,0.08693186]
[1732913697135,2.78009,3597.0,3596.5,0.08693186]
[1732913697301,2.78029,3596.8,3596.6,0.08693186]
[1732913697500,2.78029,3596.8,3596.7,0.08693186]
[1732913698047,2.78029,3596.8,3596.7,0.08692171]
[1732913699693,2.78029,3596.8,3596.7,0.08692151]
[1732913708549,2.78029,3596.8,3596.7,0.08692183]
[1732913712808,2.78009,3597.0,3596.7,0.08692183]
[1732913712954,2.78019,3596.9,3596.6,0.43117926]
[1732913713153,3.0,3597.0,3596.7,0.08692246]
[1732913713338,3.0,3597.0,3596.8,0.08692246]
[1732913713542,5.78015,3597.0,3596.6,0.43117926]
[1732913713740,5.78015,3597.0,3596.7,0.51809826]
[1732913713922,8.56031,3597.0,3596.8,0.086919]
[1732913714258,8.56031,3597.0,3596.6,0.43117926]
[1732913714459,2.78023,3596.9,3596.7,0.0869194]
[1732913714754,2.78023,3596.9,3596.8,0.0869194]
[1732913718726,2.78023,3596.9,3596.3,3.58523]
[1732913719039,2.78023,3596.9,3596.8,0.08691988]
[1732913719667,2.78023,3596.9,3596.8,1.27773758]
[1732913721772,3.0,3597.0,3596.8,1.27773758]
[1732913721979,2.77955,3597.7,3596.9,2.78017]
[1732913722141,2.77952,3597.8,3597.2,2.77993]
[1732913722344,2.77936,3598.0,3597.4,2.77973]
[1732913722851,0.7784,3598.2,3597.5,0.08690153]
[1732913723058,2.7794,3597.9,3597.6,0.08690153]
[1732913723240,2.7794,3597.9,3597.3,0.8332]
[1732913723445,2.7794,3597.9,3597.4,0.0869006]
[1732913723648,2.7794,3597.9,3597.5,0.0869006]
[1732913723840,2.77931,3598.1,3597.6,0.08689733]
[1732913724134,2.77932,3598.0,3597.4,2.77976]
[1732913724335,2.77941,3597.9,3597.5,0.08689706]
[1732913724535,2.77941,3597.9,3597.6,0.08689706]
[1732913724769,2.77941,3597.9,3597.4,2.77977]
[1732913724965,2.77941,3597.9,3597.5,0.08689678]
[1732913725187,2.77941,3597.9,3597.6,0.08689683]